[Event "EYTCC U12 Open 2019"]
[Site "Pardubice"]
[Date "2019.07.17"]
[Round "7.15"]
[White "Brozka, Karel"]
[Black "Deuer, Marius"]
[Result "1-0"]
[ECO "E16"]
[WhiteElo "1816"]
[BlackElo "1881"]
[Annotator "NA"]
[PlyCount "113"]
[EventDate "2019.07.11"]
[EventType "swiss"]
[EventCountry "CZE"]
[SourceTitle "playchess.com"]
[Source "ChessBase"]
[SourceQuality "1"]
[WhiteTeam "Czech Republic"]
[BlackTeam "Germany"]
[WhiteTeamCountry "CZE"]
[BlackTeamCountry "GER"]
[TimeControl "40/5400+30:1800+30"]

1. d4 {[%emt 0:00:00]} Nf6 {[%emt 0:00:00]} 2. Nf3 {[%emt 0:00:26]} e6 {[%emt 0:00:00]} 3. c4 {[%emt 0:00:47]} Bb4+ {[%emt 0:00:00]} 4. Bd2 {[%emt 0:01:12]} Qe7 {[%emt 0:00:07]} 5. Nc3 {[%emt 0:00:57]} Bxc3 {[%emt 0:02:00]} 6. Bxc3 {[%emt 0:00:30]} Ne4 {[%emt 0:00:08]} 7. Qc2 {[%emt 0:01:09]} Nxc3 {[%emt 0:00:12]} 8. Qxc3 {[%emt 0:00:45]} d6 {[%emt 0:01:29]} 9. e4 {[%emt 0:00:51]} Nd7 {[%emt 0:01:11]} 10. Bd3 {[%emt 0:01:05]} e5 {[%emt 0:01:52]} 11. O-O {[%emt 0:00:24]} O-O {[%emt 0:01:59]} 12. b4 {[%emt 0:02:58]} b6 {[%emt 0:07:31]} 13. Rae1 {[%emt 0:11:01]} c5 {[%emt 0:06:46]} 14. bxc5 {[%emt 0:08:22]} bxc5 {[%emt 0:00:35]} 15. d5 {[%emt 0:00:20]} g6 {[%emt 0:04:16]} 16. Nd2 {[%emt 0:04:41]} Qg5 {[%emt 0:07:34]} 17. g3 {[%emt 0:03:07]} Nf6 {[%emt 0:09:08]} 18. f4 {[%emt 0:05:02]} exf4 {[%emt 0:01:03]} 19. Nf3 {[%emt 0:02:52]} Nxd5 {[%emt 0:06:17]} 20. exd5 {[%emt 0:01:23]} Qh6 {[%emt 0:07:34]} 21. Qf6 {[%emt 0:06:53]} fxg3 {[%emt 0:02:06]} 22. hxg3 {[%emt 0:02:39]} Bh3 {[%emt 0:03:46]} 23. Rf2 {[%emt 0:00:18]} Rae8 {[%emt 0:02:24]} 24. Re7 {[%emt 0:08:09]} Qh5 {[%emt 0:06:47]} 25. Ng5 {[%emt 0:15:24]} Rxe7 {[%emt 0:02:19]} 26. Qxe7 {[%emt 0:00:12]} Qg4 {[%emt 0:00:30]} 27. Kh2 {[%emt 0:00:42]} Qd7 {[%emt 0:03:54]} 28. Qxd7 {[%emt 0:01:57]} Bxd7 {[%emt 0:00:06]} 29. Rf6 {[%emt 0:00:44]} Bg4 {[%emt 0:03:52]} 30. Kg2 {[%emt 0:09:49]} Rb8 {[%emt 0:03:25]} 31. Rf2 {[%emt 0:02:53]} Rb7 {[%emt 0:02:56]} 32. Ne4 {[%emt 0:00:52]} f5 {[%emt 0:01:41]} 33. Nxd6 {[%emt 0:01:44]} Re7 {[%emt 0:00:27]} 34. Rb2 {[%emt 0:03:02]} Re3 {[%emt 0:01:39]} 35. Bf1 {[%emt 0:00:20]} h5 {[%emt 0:01:22]} 36. Rb3 {[%emt 0:01:53]} Re1 {[%emt 0:01:28]} 37. Rb8+ {[%emt 0:00:30]} Kg7 {[%emt 0:00:16]} 38. Rb7+ {[%emt 0:00:14]} Kg8 {[%emt 0:00:54]} 39. Rc7 {[%emt 0:01:24]} g5 {[%emt 0:00:37]} 40. Rc8+ {[%emt 0:00:52]} Kg7 {[%emt 0:00:23]} 41. Rc7+ {[%emt 0:30:05]} Kg6 {[%emt 0:30:45]} 42. Nf7 {[%emt 0:00:00]} h4 {[%emt 0:00:00]} 43. gxh4 {[%emt 0:00:00]} gxh4 {[%emt 0:00:00]} 44. Kf2 {[%emt 0:00:00]} Rb1 {[%emt 0:00:00]} 45. d6 {[%emt 0:00:00]} Rb2+ {[%emt 0:00:00]} 46. Ke3 {[%emt 0:00:00]} h3 {[%emt 0:00:00]} 47. Ne5+ {[%emt 0:00:00]} Kf6 {[%emt 0:00:00]} 48. d7 {[%emt 0:00:00]} f4+ {[%emt 0:00:00]} 49. Kxf4 {[%emt 0:00:00]} Bxd7 {[%emt 0:00:00]} 50. Nxd7+ {[%emt 0:00:00]} Ke7 {[%emt 0:00:00]} 51. Bxh3 {[%emt 0:00:00]} Rxa2 {[%emt 0:00:00]} 52. Ne5+ {[%emt 0:00:00]} Ke8 {[%emt 0:00:00]} 53. Rxc5 {[%emt 0:00:00]} a5 {[%emt 0:00:00]} 54. Bd7+ {[%emt 0:00:00]} Kf8 {[%emt 0:00:00]} 55. Kf5 {[%emt 0:00:00]} a4 {[%emt 0:00:00]} 56. Kf6 {[%emt 0:00:00]} Rf2+ {[%emt 0:00:00]} 57. Bf5 {[%emt 0:00:00]} 1-0

[Event "EYTCC U12 Open 2019"]
[Site "Pardubice"]
[Date "2019.07.17"]
[Round "7.16"]
[White "Hagner, Bennet"]
[Black "Werner, Hong Quan Dan"]
[Result "1-0"]
[ECO "B32"]
[WhiteElo "1831"]
[BlackElo "1734"]
[Annotator "NA"]
[PlyCount "53"]
[EventDate "2019.07.11"]
[EventType "swiss"]
[EventCountry "CZE"]
[SourceTitle "playchess.com"]
[Source "ChessBase"]
[SourceQuality "1"]
[WhiteTeam "Germany"]
[BlackTeam "Czech Republic"]
[WhiteTeamCountry "GER"]
[BlackTeamCountry "CZE"]
[TimeControl "40/5400+30:1800+30"]

1. e4 c5 2. Nf3 Nc6 3. d4 cxd4 4. Nxd4 e5 5. Nb5 d6 6. N1c3 Nf6 7. Nd5 Nxd5 8. exd5 Nb8 9. c4 Be7 10. Bd3 a6 11. Nc3 O-O 12. O-O f5 13. Bc2 Bf6 14. b3 e4 15. Bb2 Nd7 16. f3 Qb6+ 17. Kh1 Nc5 18. fxe4 Nxe4 19. Bxe4 fxe4 20. Qe2 Re8 21. Rxf6 gxf6 22. Nxe4 Kf8 23. Bxf6 Qc7 24. Rf1 Qf7 25. Bg7+ Kxg7 26. Rxf7+ Kg8 27. Nf6+ 1-0

[Event "EYTCC U12 Open 2019"]
[Site "Pardubice"]
[Date "2019.07.17"]
[Round "7.19"]
[White "Bialiauski, Artsiom"]
[Black "Hladky, Tadeas"]
[Result "1-0"]
[ECO "D92"]
[WhiteElo "1784"]
[BlackElo "1638"]
[Annotator "NA"]
[PlyCount "49"]
[EventDate "2019.07.11"]
[EventType "swiss"]
[EventCountry "CZE"]
[SourceTitle "playchess.com"]
[Source "ChessBase"]
[SourceQuality "1"]
[WhiteTeam "Belarus"]
[BlackTeam "Czech Republic"]
[WhiteTeamCountry "BLR"]
[BlackTeamCountry "CZE"]
[TimeControl "40/5400+30:1800+30"]

1. d4 {[%emt 0:00:00]} Nf6 {[%emt 0:00:00]} 2. Nf3 {[%emt 0:00:30]} g6 {[%emt 0:00:00]} 3. c4 {[%emt 0:00:11]} Bg7 {[%emt 0:00:00]} 4. Nc3 {[%emt 0:00:40]} d5 {[%emt 0:00:00]} 5. Bf4 {[%emt 0:01:45]} dxc4 {[%emt 0:00:59]} 6. e3 {[%emt 0:00:32]} Be6 {[%emt 0:00:06]} 7. Ng5 {[%emt 0:04:08]} Bd5 {[%emt 0:01:36]} 8. e4 {[%emt 0:00:51]} h6 {[%emt 0:00:02]} 9. exd5 {[%emt 0:02:13]} hxg5 {[%emt 0:00:04]} 10. Be5 {[%emt 0:04:15]} O-O {[%emt 0:08:55]} 11. Bxc4 {[%emt 0:00:19]} Nfd7 {[%emt 0:01:11]} 12. Bxg7 {[%emt 0:00:28]} Kxg7 {[%emt 0:00:09]} 13. O-O {[%emt 0:01:16]} Nb6 {[%emt 0:00:25]} 14. Bb3 {[%emt 0:00:18]} N8d7 {[%emt 0:07:14]} 15. Re1 {[%emt 0:01:22]} Rc8 {[%emt 0:02:12]} 16. Qg4 {[%emt 0:06:16]} Nf6 {[%emt 0:01:29]} 17. Qxg5 {[%emt 0:01:44]} Rh8 {[%emt 0:01:11]} 18. Qe5 {[%emt 0:07:49]} Qd6 {[%emt 0:06:27]} 19. h3 {[%emt 0:04:27]} Rce8 {[%emt 0:04:18]} 20. Nb5 {[%emt 0:11:38]} Qxe5 {[%emt 0:00:54]} 21. Rxe5 {[%emt 0:00:11]} a6 {[%emt 0:02:28]} 22. Nxc7 {[%emt 0:01:17]} Rc8 {[%emt 0:00:07]} 23. Rxe7 {[%emt 0:00:06]} Ng8 {[%emt 0:00:12]} 24. Ne6+ {[%emt 0:00:04]} Kf6 {[%emt 0:02:27]} 25. Rxb7 {[%emt 0:00:05]} 1-0

[Event "EYTCC U12 Open 2019"]
[Site "Pardubice"]
[Date "2019.07.17"]
[Round "7.20"]
[White "Mohapl, Tomas"]
[Black "Piatrenka, Ivan"]
[Result "1-0"]
[ECO "B06"]
[WhiteElo "1585"]
[BlackElo "1498"]
[Annotator "NA"]
[PlyCount "113"]
[EventDate "2019.07.11"]
[EventType "swiss"]
[EventCountry "CZE"]
[SourceTitle "playchess.com"]
[Source "ChessBase"]
[SourceQuality "1"]
[WhiteTeam "Czech Republic"]
[BlackTeam "Belarus"]
[WhiteTeamCountry "CZE"]
[BlackTeamCountry "BLR"]
[TimeControl "40/5400+30:1800+30"]

1. e4 {[%emt 0:00:00]} d6 {[%emt 0:00:00]} 2. d4 {[%emt 0:00:31]} g6 {[%emt 0:00:00]} 3. Nc3 {[%emt 0:03:49]} Bg7 {[%emt 0:00:00]} 4. Be3 {[%emt 0:04:50]} c6 {[%emt 0:00:20]} 5. Bc4 {[%emt 0:04:42]} Nf6 {[%emt 0:01:47]} 6. f3 {[%emt 0:02:59]} O-O {[%emt 0:04:36]} 7. a4 {[%emt 0:04:57]} e5 {[%emt 0:00:55]} 8. dxe5 {[%emt 0:02:22]} dxe5 {[%emt 0:00:01]} 9. Qxd8 {[%emt 0:03:38]} Rxd8 {[%emt 0:00:00]} 10. Nge2 {[%emt 0:10:01]} Be6 {[%emt 0:07:28]} 11. Bxe6 {[%emt 0:01:37]} fxe6 {[%emt 0:00:03]} 12. Ng3 {[%emt 0:04:20]} Na6 {[%emt 0:04:14]} 13. Na2 {[%emt 0:04:39]} Bf8 {[%emt 0:03:16]} 14. Ke2 {[%emt 0:03:20]} Bc5 {[%emt 0:03:49]} 15. Rad1 {[%emt 0:02:25]} Bd4 {[%emt 0:05:37]} 16. b3 {[%emt 0:05:30]} Rd7 {[%emt 0:04:15]} 17. Bg5 {[%emt 0:02:42]} Rf7 {[%emt 0:02:06]} 18. c3 {[%emt 0:09:12]} Bb6 {[%emt 0:01:20]} 19. b4 {[%emt 0:03:32]} Rd8 {[%emt 0:02:48]} 20. Rxd8+ {[%emt 0:02:30]} Bxd8 {[%emt 0:00:02]} 21. Rd1 {[%emt 0:00:47]} Bc7 {[%emt 0:00:57]} 22. Nf1 {[%emt 0:04:12]} Kg7 {[%emt 0:06:11]} 23. Ne3 {[%emt 0:00:54]} h6 {[%emt 0:00:39]} 24. Bh4 {[%emt 0:01:11]} Nh5 {[%emt 0:00:50]} 25. Bf2 {[%emt 0:03:05]} Nf4+ {[%emt 0:01:13]} 26. Kf1 {[%emt 0:00:07]} Nb8 {[%emt 0:08:25]} 27. Nc4 {[%emt 0:01:25]} a6 {[%emt 0:04:56]} 28. Bb6 {[%emt 0:01:12]} Kf6 {[%emt 0:08:09]} 29. Nc1 {[%emt 0:01:20]} Bxb6 {[%emt 0:02:49]} 30. Nxb6 {[%emt 0:00:06]} Ke7 {[%emt 0:00:08]} 31. Nb3 {[%emt 0:00:34]} Ke8 {[%emt 0:01:12]} 32. Nc5 {[%emt 0:00:13]} a5 {[%emt 0:03:17]} 33. Nc8 {[%emt 0:02:58]} Rc7 {[%emt 0:01:42]} 34. Nd6+ {[%emt 0:00:21]} Ke7 {[%emt 0:00:02]} 35. Ndxb7 {[%emt 0:01:16]} Na6 {[%emt 0:00:52]} 36. bxa5 {[%emt 0:01:35]} Nh5 {[%emt 0:01:24]} 37. Nxa6 {[%emt 0:01:46]} Rxb7 {[%emt 0:00:01]} 38. Nc5 {[%emt 0:00:11]} Ra7 {[%emt 0:00:15]} 39. a6 {[%emt 0:00:45]} Nf6 {[%emt 0:00:01]} 40. Rb1 {[%emt 0:03:24]} Kd6 {[%emt 0:00:24]} 41. Rb7 {[%emt 0:33:58]} Ra8 {[%emt 0:30:13]} 42. Rf7 {[%emt 0:00:00]} Kxc5 {[%emt 0:00:00]} 43. Rxf6 {[%emt 0:00:00]} Rxa6 {[%emt 0:00:00]} 44. Rxe6 {[%emt 0:00:00]} Rxa4 {[%emt 0:00:00]} 45. Rxg6 {[%emt 0:00:00]} Rc4 {[%emt 0:00:00]} 46. Rxh6 {[%emt 0:00:00]} Rxc3 {[%emt 0:00:00]} 47. Ke1 {[%emt 0:00:00]} Kd4 {[%emt 0:00:00]} 48. Kd2 {[%emt 0:00:00]} Ra3 {[%emt 0:00:00]} 49. Rxc6 {[%emt 0:00:00]} Ra1 {[%emt 0:00:00]} 50. Rd6+ {[%emt 0:00:00]} Kc4 {[%emt 0:00:00]} 51. Rd5 {[%emt 0:00:00]} Ra2+ {[%emt 0:00:00]} 52. Ke3 {[%emt 0:00:00]} Rxg2 {[%emt 0:00:00]} 53. Rxe5 {[%emt 0:00:00]} Rxh2 {[%emt 0:00:00]} 54. Rd5 {[%emt 0:00:00]} Rh4 {[%emt 0:00:00]} 55. Rd8 {[%emt 0:00:00]} Kc5 {[%emt 0:00:00]} 56. e5 {[%emt 0:00:00]} Rh5 {[%emt 0:00:00]} 57. Ke4 {[%emt 0:00:00]} 1-0

[Event "EYTCC U12 Open 2019"]
[Site "Pardubice"]
[Date "2019.07.17"]
[Round "7.21"]
[White "Herega, Nejc"]
[Black "Royal, Shreyas"]
[Result "0-1"]
[ECO "E73"]
[WhiteElo "1939"]
[BlackElo "1996"]
[Annotator "NA"]
[PlyCount "68"]
[EventDate "2019.07.11"]
[EventType "swiss"]
[EventCountry "CZE"]
[SourceTitle "playchess.com"]
[Source "ChessBase"]
[SourceQuality "1"]
[WhiteTeam "Slovenia"]
[BlackTeam "England"]
[WhiteTeamCountry "SLO"]
[BlackTeamCountry "ENG"]
[TimeControl "40/5400+30:1800+30"]

1. d4 {[%emt 0:00:00]} Nf6 {[%emt 0:00:00]} 2. c4 {[%emt 0:00:00]} g6 {[%emt 0:00:13]} 3. Nc3 {[%emt 0:00:00]} Bg7 {[%emt 0:00:23]} 4. e4 {[%emt 0:00:05]} d6 {[%emt 0:00:27]} 5. Be2 {[%emt 0:00:07]} O-O {[%emt 0:00:36]} 6. Bg5 {[%emt 0:00:05]} c5 {[%emt 0:01:29]} 7. d5 {[%emt 0:00:08]} e6 {[%emt 0:00:31]} 8. Nf3 {[%emt 0:02:19]} exd5 {[%emt 0:00:48]} 9. exd5 {[%emt 0:00:17]} Qb6 {[%emt 0:01:12]} 10. Qd2 {[%emt 0:04:22]} Bf5 {[%emt 0:00:26]} 11. Rc1 {[%emt 0:11:37]} Ne4 {[%emt 0:04:45]} 12. Nxe4 {[%emt 0:01:16]} Bxe4 {[%emt 0:00:06]} 13. b3 {[%emt 0:01:55]} Bxf3 {[%emt 0:11:56]} 14. Bxf3 {[%emt 0:01:01]} Re8+ {[%emt 0:00:05]} 15. Be2 {[%emt 0:08:28]} a5 {[%emt 0:00:08]} 16. O-O {[%emt 0:02:54]} a4 {[%emt 0:01:55]} 17. Rb1 {[%emt 0:05:26]} axb3 {[%emt 0:01:15]} 18. Rxb3 {[%emt 0:02:06]} Qa6 {[%emt 0:00:03]} 19. Rfb1 {[%emt 0:07:27]} Qxa2 {[%emt 0:04:07]} 20. Qxa2 {[%emt 0:02:34]} Rxa2 {[%emt 0:00:08]} 21. Rxb7 {[%emt 0:00:40]} Na6 {[%emt 0:00:13]} 22. Bf1 {[%emt 0:04:49]} Bd4 {[%emt 0:04:00]} 23. Bh4 {[%emt 0:05:11]} f5 {[%emt 0:01:16]} 24. Ra7 {[%emt 0:04:28]} g5 {[%emt 0:02:57]} 25. Bxg5 {[%emt 0:06:44]} Rxf2 {[%emt 0:00:07]} 26. Kh1 {[%emt 0:01:17]} Nb4 {[%emt 0:00:08]} 27. Bh4 {[%emt 0:03:09]} Rf4 {[%emt 0:00:13]} 28. Bg3 {[%emt 0:03:51]} Rfe4 {[%emt 0:00:53]} 29. Rd7 {[%emt 0:06:39]} f4 {[%emt 0:02:00]} 30. Bh4 {[%emt 0:01:29]} f3 {[%emt 0:00:08]} 31. g3 {[%emt 0:02:02]} Re1 {[%emt 0:00:21]} 32. Rd8 {[%emt 0:00:31]} Rxb1 {[%emt 0:00:38]} 33. Rxe8+ {[%emt 0:00:09]} Kf7 {[%emt 0:00:13]} 34. Re7+ {[%emt 0:00:28]} Kf8 {[%emt 0:00:05]} 0-1

[Event "EYTCC U12 Open 2019"]
[Site "Pardubice"]
[Date "2019.07.17"]
[Round "7.22"]
[White "Dias, Savin"]
[Black "Skrbec, Leon"]
[Result "1/2-1/2"]
[ECO "B19"]
[WhiteElo "1840"]
[BlackElo "1896"]
[Annotator "NA"]
[PlyCount "90"]
[EventDate "2019.07.11"]
[EventType "swiss"]
[EventCountry "CZE"]
[SourceTitle "playchess.com"]
[Source "ChessBase"]
[SourceQuality "1"]
[WhiteTeam "England"]
[BlackTeam "Slovenia"]
[WhiteTeamCountry "ENG"]
[BlackTeamCountry "SLO"]
[TimeControl "40/5400+30:1800+30"]

1. e4 {[%emt 0:00:00]} c6 {[%emt 0:00:00]} 2. d4 {[%emt 0:00:00]} d5 {[%emt 0:00:00]} 3. Nc3 {[%emt 0:00:00]} dxe4 {[%emt 0:00:00]} 4. Nxe4 {[%emt 0:00:00]} Bf5 {[%emt 0:00:00]} 5. Ng3 {[%emt 0:00:00]} Bg6 {[%emt 0:00:03]} 6. h4 {[%emt 0:00:00]} h6 {[%emt 0:00:06]} 7. Nf3 {[%emt 0:00:00]} Nd7 {[%emt 0:00:14]} 8. h5 {[%emt 0:00:00]} Bh7 {[%emt 0:00:06]} 9. Bd3 {[%emt 0:00:00]} Bxd3 {[%emt 0:00:06]} 10. Qxd3 {[%emt 0:00:00]} Ngf6 {[%emt 0:00:14]} 11. Bd2 {[%emt 0:00:41]} e6 {[%emt 0:00:06]} 12. O-O-O {[%emt 0:00:15]} Bd6 {[%emt 0:00:33]} 13. Ne4 {[%emt 0:00:42]} Nxe4 {[%emt 0:00:08]} 14. Qxe4 {[%emt 0:00:05]} Nf6 {[%emt 0:00:25]} 15. Qe2 {[%emt 0:01:23]} Qc7 {[%emt 0:01:04]} 16. g3 {[%emt 0:04:20]} O-O-O {[%emt 0:01:07]} 17. Kb1 {[%emt 0:02:36]} c5 {[%emt 0:01:59]} 18. c3 {[%emt 0:02:11]} c4 {[%emt 0:01:47]} 19. Ne5 {[%emt 0:06:48]} Bxe5 {[%emt 0:04:54]} 20. dxe5 Nd5 {[%emt 0:00:38]} 21. Rh4 {[%emt 0:04:40]} b5 {[%emt 0:02:30]} 22. Rd4 {[%emt 0:04:19]} Ne7 {[%emt 0:11:31]} 23. Bf4 {[%emt 0:01:45]} Nf5 {[%emt 0:01:20]} 24. Rxd8+ {[%emt 0:07:25]} Rxd8 {[%emt 0:01:34]} 25. Rxd8+ {[%emt 0:00:05]} Qxd8 {[%emt 0:00:30]} 26. Qe4 {[%emt 0:01:11]} Qd1+ {[%emt 0:02:23]} 27. Bc1 {[%emt 0:00:03]} Qd5 {[%emt 0:01:06]} 28. Qxd5 {[%emt 0:00:12]} exd5 {[%emt 0:00:06]} 29. Bf4 {[%emt 0:00:25]} Kd7 {[%emt 0:00:31]} 30. Kc1 {[%emt 0:01:16]} Ke6 {[%emt 0:03:15]} 31. Kd2 {[%emt 0:00:16]} Ne7 {[%emt 0:00:54]} 32. Be3 {[%emt 0:03:18]} Kxe5 {[%emt 0:13:20]} 33. Bxa7 {[%emt 0:01:39]} Nc6 {[%emt 0:04:12]} 34. Bc5 {[%emt 0:01:29]} Kf5 {[%emt 0:02:12]} 35. Bf8 {[%emt 0:03:26]} Kg5 {[%emt 0:01:47]} 36. Bxg7 {[%emt 0:00:50]} Kxh5 {[%emt 0:00:07]} 37. Ke3 {[%emt 0:00:54]} Kg6 {[%emt 0:00:16]} 38. Bd4 {[%emt 0:01:43]} Kf5 {[%emt 0:00:38]} 39. f3 {[%emt 0:01:57]} h5 {[%emt 0:00:23]} 40. a3 {[%emt 0:00:48]} Nd8 {[%emt 0:03:48]} 41. Bc5 {[%emt 0:35:35]} Ne6 {[%emt 0:31:12]} 42. Bd6 {[%emt 0:00:41]} Kg5 {[%emt 0:00:36]} 43. Bb4 {[%emt 0:01:24]} Kf5 {[%emt 0:07:53]} 44. Bd6 {[%emt 0:00:12]} Kg5 {[%emt 0:04:02]} 45. Bb4 {[%emt 0:00:06]} Kf5 {[%emt 0:00:33]} 1/2-1/2

[Event "EYTCC U12 Open 2019"]
[Site "Pardubice"]
[Date "2019.07.17"]
[Round "7.23"]
[White "Gregoric, Andraz"]
[Black "Merriman, James"]
[Result "0-1"]
[ECO "C03"]
[WhiteElo "1911"]
[BlackElo "1808"]
[Annotator "NA"]
[PlyCount "60"]
[EventDate "2019.07.11"]
[EventType "swiss"]
[EventCountry "CZE"]
[SourceTitle "playchess.com"]
[Source "ChessBase"]
[SourceQuality "1"]
[WhiteTeam "Slovenia"]
[BlackTeam "England"]
[WhiteTeamCountry "SLO"]
[BlackTeamCountry "ENG"]
[TimeControl "40/5400+30:1800+30"]

1. e4 {[%emt 0:00:00]} e6 {[%emt 0:00:00]} 2. d4 {[%emt 0:00:00]} d5 {[%emt 0:00:09]} 3. Nd2 {[%emt 0:00:00]} Be7 {[%emt 0:00:11]} 4. Bd3 {[%emt 0:00:00]} c5 {[%emt 0:00:09]} 5. dxc5 {[%emt 0:00:17]} Nf6 {[%emt 0:00:14]} 6. Qe2 {[%emt 0:00:29]} O-O {[%emt 0:00:43]} 7. Ngf3 {[%emt 0:04:04]} a5 {[%emt 0:00:23]} 8. O-O {[%emt 0:03:42]} Na6 {[%emt 0:00:37]} 9. c3 {[%emt 0:29:56]} Nxc5 {[%emt 0:01:18]} 10. Bc2 {[%emt 0:00:15]} b6 {[%emt 0:06:15]} 11. Qe3 {[%emt 0:08:16]} Ncxe4 {[%emt 0:06:31]} 12. Nxe4 {[%emt 0:00:40]} dxe4 {[%emt 0:01:21]} 13. Bxe4 {[%emt 0:06:36]} Bc5 {[%emt 0:00:54]} 14. Nd4 {[%emt 0:01:09]} Nxe4 15. Qxe4 {[%emt 0:01:15]} Ba6 {[%emt 0:08:22]} 16. Rd1 {[%emt 0:02:54]} Re8 {[%emt 0:08:29]} 17. Be3 {[%emt 0:01:39]} f5 {[%emt 0:11:05]} 18. Qf3 {[%emt 0:05:42]} Qf6 {[%emt 0:03:55]} 19. Rd2 {[%emt 0:16:53]} f4 {[%emt 0:07:44]} 20. Bxf4 {[%emt 0:05:11]} e5 {[%emt 0:00:12]} 21. Qd5+ {[%emt 0:00:09]} Kh8 {[%emt 0:01:30]} 22. Bxe5 {[%emt 0:00:14]} Qxe5 {[%emt 0:00:10]} 23. Qxe5 {[%emt 0:00:29]} Rxe5 {[%emt 0:00:08]} 24. Nf3 {[%emt 0:00:07]} Re7 {[%emt 0:00:44]} 25. a3 {[%emt 0:00:17]} a4 {[%emt 0:00:54]} 26. Rad1 {[%emt 0:00:05]} Rae8 {[%emt 0:01:00]} 27. Rd5 {[%emt 0:00:12]} Re2 {[%emt 0:00:46]} 28. Rd8 {[%emt 0:00:17]} Bxf2+ {[%emt 0:00:37]} 29. Kh1 {[%emt 0:00:03]} h6 {[%emt 0:00:47]} 30. Rxe8+ {[%emt 0:00:26]} Rxe8 {[%emt 0:00:09]} 0-1

[Event "EYTCC U12 Open 2019"]
[Site "Pardubice"]
[Date "2019.07.17"]
[Round "7.24"]
[White "Thatte, Nishchal"]
[Black "Olenik Campa, Rudi"]
[Result "1-0"]
[ECO "C06"]
[WhiteElo "1686"]
[BlackElo "1854"]
[Annotator "NA"]
[PlyCount "119"]
[EventDate "2019.07.11"]
[EventType "swiss"]
[EventCountry "CZE"]
[SourceTitle "playchess.com"]
[Source "ChessBase"]
[SourceQuality "1"]
[WhiteTeam "England"]
[BlackTeam "Slovenia"]
[WhiteTeamCountry "ENG"]
[BlackTeamCountry "SLO"]
[TimeControl "40/5400+30:1800+30"]

1. e4 {[%emt 0:00:00]} e6 {[%emt 0:00:00]} 2. d4 {[%emt 0:00:00]} d5 {[%emt 0:00:00]} 3. Nd2 {[%emt 0:00:04]} Nf6 {[%emt 0:00:00]} 4. e5 {[%emt 0:00:15]} Nfd7 {[%emt 0:00:02]} 5. Bd3 {[%emt 0:00:14]} c5 {[%emt 0:00:07]} 6. c3 {[%emt 0:00:19]} Nc6 {[%emt 0:00:07]} 7. Ne2 {[%emt 0:00:22]} cxd4 {[%emt 0:00:10]} 8. cxd4 {[%emt 0:00:14]} f6 {[%emt 0:00:21]} 9. exf6 {[%emt 0:00:15]} Nxf6 {[%emt 0:00:06]} 10. Nf3 {[%emt 0:00:23]} Bd6 {[%emt 0:00:14]} 11. O-O {[%emt 0:00:16]} O-O {[%emt 0:00:15]} 12. Bf4 {[%emt 0:22:21]} Bxf4 {[%emt 0:01:59]} 13. Nxf4 {[%emt 0:00:18]} Ng4 {[%emt 0:02:15]} 14. Qd2 {[%emt 0:03:02]} Qd6 {[%emt 0:00:54]} 15. g3 {[%emt 0:02:03]} e5 {[%emt 0:06:11]} 16. dxe5 {[%emt 0:01:34]} Ngxe5 {[%emt 0:00:59]} 17. Be2 {[%emt 0:04:57]} d4 {[%emt 0:01:40]} 18. Nxe5 {[%emt 0:03:32]} Nxe5 {[%emt 0:00:45]} 19. Rad1 {[%emt 0:01:36]} Rd8 {[%emt 0:02:57]} 20. Nd3 {[%emt 0:06:46]} Be6 {[%emt 0:06:21]} 21. Nxe5 {[%emt 0:04:12]} Qxe5 {[%emt 0:00:21]} 22. Rfe1 {[%emt 0:00:38]} Qd6 {[%emt 0:00:49]} 23. b3 {[%emt 0:02:05]} Rac8 {[%emt 0:09:45]} 24. Qg5 {[%emt 0:03:10]} Rc5 {[%emt 0:09:04]} 25. Qh4 {[%emt 0:01:52]} b5 {[%emt 0:06:32]} 26. Bxb5 {[%emt 0:03:42]} g5 {[%emt 0:01:31]} 27. Qh6 {[%emt 0:00:21]} Bf7 {[%emt 0:06:07]} 28. Qxd6 {[%emt 0:01:19]} Rxd6 {[%emt 0:00:05]} 29. Bd3 {[%emt 0:00:19]} Bh5 {[%emt 0:04:46]} 30. Rd2 {[%emt 0:00:58]} Bf3 {[%emt 0:01:16]} 31. Bc4+ {[%emt 0:01:03]} Kf8 {[%emt 0:00:17]} 32. Rd3 {[%emt 0:00:31]} Bh5 {[%emt 0:00:25]} 33. Re4 {[%emt 0:01:44]} Bg6 {[%emt 0:02:04]} 34. Rexd4 {[%emt 0:06:16]} Bxd3 {[%emt 0:00:57]} 35. Rxd6 {[%emt 0:00:08]} Bxc4 {[%emt 0:00:05]} 36. bxc4 {[%emt 0:00:07]} Rxc4 {[%emt 0:00:25]} 37. Rd7 {[%emt 0:00:55]} Ra4 {[%emt 0:00:43]} 38. Rxh7 {[%emt 0:00:27]} Rxa2 {[%emt 0:01:23]} 39. Rh5 {[%emt 0:00:09]} Ra5 {[%emt 0:00:06]} 40. h4 {[%emt 0:05:21]} Ra1+ {[%emt 0:00:45]} 41. Kg2 {[%emt 0:30:20]} gxh4 {[%emt 0:30:08]} 42. Rxh4 {[%emt 0:01:31]} Kf7 {[%emt 0:00:16]} 43. Rh8 {[%emt 0:00:16]} a5 {[%emt 0:00:12]} 44. Ra8 {[%emt 0:00:02]} Kf6 {[%emt 0:00:15]} 45. f4 {[%emt 0:00:42]} Kf5 {[%emt 0:00:30]} 46. Kf3 {[%emt 0:00:27]} Ra3+ {[%emt 0:00:08]} 47. Kg2 {[%emt 0:00:06]} Ra1 {[%emt 0:00:06]} 48. Rf8+ {[%emt 0:00:31]} Kg4 {[%emt 0:00:08]} 49. Rg8+ {[%emt 0:04:33]} Kf5 {[%emt 0:00:07]} 50. Rg5+ {[%emt 0:00:20]} Kf6 {[%emt 0:00:05]} 51. Rb5 {[%emt 0:00:25]} a4 {[%emt 0:01:20]} 52. Ra5 {[%emt 0:00:11]} a3 {[%emt 0:00:31]} 53. g4 {[%emt 0:00:24]} a2 {[%emt 0:00:12]} 54. Ra6+ {[%emt 0:00:13]} Kf7 {[%emt 0:02:09]} 55. g5 {[%emt 0:00:29]} Kg7 {[%emt 0:00:42]} 56. f5 {[%emt 0:00:18]} Kf7 {[%emt 0:01:58]} 57. Ra7+ {[%emt 0:00:27]} Kg8 {[%emt 0:00:29]} 58. g6 {[%emt 0:00:25]} Kf8 {[%emt 0:00:03]} 59. f6 {[%emt 0:00:07]} Re1 {[%emt 0:00:17]} 60. Ra8+ {[%emt 0:00:39]} 1-0